bitfinex/quotes_ETHUSD_20250331
["timestamp","ask_amount","ask_price","bid_price","bid_amount"]
[1743383814690,0.8059,1811.7,1811.4,5.52056]
[1743383815014,3.09637561,1811.6,1811.0,11.59353]
[1743383815171,6.32691,1811.3,1810.8,5.52215]
[1743383815373,14.26771561,1811.2,1810.8,5.52215]
[1743383815688,5.65,1811.2,1810.9,5.52194]
[1743383816102,11.17122,1811.2,1810.8,5.52215]
[1743383816436,5.65,1811.2,1810.9,5.52186]
[1743383817018,5.65,1811.1,1810.7,5.52271]
[1743383817220,8.74637561,1811.1,1810.6,6.07]
[1743383817421,5.65,1811.1,1810.4,6.076004]
[1743383817620,0.8059,1811.3,1811.0,5.52152]
[1743383817818,0.8059,1811.3,1810.9,5.52205]
[1743383818115,6.32698,1811.3,1810.9,5.52192]
[1743383818317,7.259645,1811.3,1810.8,5.52218]
[1743383818476,7.259645,1811.3,1810.9,5.52209]
[1743383819129,5.52131,1811.2,1810.8,5.52218]
[1743383819417,8.61768561,1811.2,1810.7,5.52265]
[1743383819723,3.86827561,1811.0,1810.3,38.23546]
[1743383819880,11.0454,1810.8,1810.3,42.93269]
[1743383820078,11.0454,1810.8,1810.2,6.07]
[1743383820079,0.42144904,1810.8,1810.5,5.52326]
[1743383820324,0.42144904,1810.8,1810.2,5.5241]
[1743383820325,0.7719,1810.7,1810.2,5.5241]
[1743383820523,6.29482,1810.7,1810.3,5.5239]
[1743383820823,5.52306,1810.6,1810.2,6.15918]
[1743383820985,5.65,1810.5,1809.9,5.52511]
[1743383821185,11.04844,1810.3,1809.8,5.5252]
[1743383821423,5.52422,1810.3,1809.9,5.52505]
[1743383821577,5.92935729,1810.3,1809.9,5.52505]
[1743383822413,11.45357729,1810.3,1809.8,5.5252]
[1743383822579,11.45357729,1810.3,1809.8,6.07772]
[1743383822786,5.92935729,1810.3,1809.9,5.52502]
[1743383823013,0.40513729,1810.3,1809.9,11.04999]
[1743383823233,6.4219,1810.4,1809.9,0.8267]
[1743383823511,6.4219,1810.4,1810.2,5.52413]
[1743383823710,6.4219,1810.4,1810.2,6.076543]
[1743383823917,6.4219,1810.4,1810.1,5.5245]
[1743383824418,6.4219,1810.4,1810.1,20.0245]
[1743383825279,0.7719,1810.6,1810.3,5.52366]
[1743383825810,6.29507,1810.6,1810.1,20.0244]
[1743383826025,5.52337,1810.5,1810.1,20.0244]
[1743383826186,5.52337,1810.5,1810.1,27.55127]
[1743383826515,5.52337,1810.5,1810.1,22.02684]
[1743383827404,5.52337,1810.5,1810.1,7.52684]
[1743383827795,6.29507,1810.6,1810.1,7.5268]
[1743383828251,0.7719,1810.1,1809.7,5.52566]
[1743383828394,5.52531,1809.9,1809.5,5.52627]
[1743383828714,11.17511,1810.0,1809.6,5.52602]
[1743383828916,11.17511,1810.0,1809.6,12.157159]
[1743383829085,5.65,1810.0,1809.8,5.52546]
[1743383829280,5.65,1810.0,1809.9,5.52516]
[1743383829523,5.65,1810.0,1809.8,11.05078]
[1743383829698,5.65,1810.0,1809.9,5.52516]
[1743383829901,5.65,1810.0,1809.9,6.630208]
[1743383830225,6.4219,1810.3,1810.0,5.52486]
[1743383830732,6.4219,1810.3,1810.0,11.04958]
[1743383831026,6.4219,1810.3,1810.1,5.52447]
[1743383831526,6.4219,1810.3,1810.0,5.52472]
[1743383832806,6.4219,1810.3,1810.0,6.077192]
[1743383833127,0.793,1810.6,1810.3,5.52387]
[1743383835123,0.793,1810.6,1810.1,11.04865]
[1743383835323,0.793,1810.6,1810.2,5.52422]
[1743383835528,6.31619,1810.6,1810.2,5.52422]
[1743383835698,5.52367,1810.4,1810.0,5.52474]
[1743383835992,5.52352,1810.5,1810.1,5.52453]
[1743383836196,5.52367,1810.4,1810.0,5.52474]
[1743383836428,5.52395,1810.3,1810.0,5.52474]
[1743383836647,0.793,1810.2,1809.7,5.52573]
[1743383836800,0.793,1809.8,1809.4,5.52651]
[1743383836999,0.793,1809.8,1809.2,6.30814]
[1743383837198,5.52613,1809.6,1809.2,5.52714]
[1743383837495,0.793,1809.5,1809.0,5.52768]
[1743383837729,5.52696,1809.4,1809.0,5.52768]
[1743383837934,11.17696,1809.4,1809.0,5.52768]
[1743383838119,5.65,1809.4,1809.0,11.05534]
[1743383838325,11.17669,1809.4,1808.9,37.42121]
[1743383838501,16.70366,1809.4,1808.9,37.42121]
[1743383838829,16.70366,1809.4,1808.8,5.52852]
[1743383838830,0.793,1809.2,1808.8,5.52852]
[1743383839047,0.793,1809.2,1808.8,11.05678]
[1743383839249,0.793,1809.2,1808.8,5.52826]
[1743383839547,6.3203,1809.2,1808.7,5.5287]
[1743383839698,0.793,1809.2,1808.8,5.52834]
[1743383839898,0.793,1809.2,1808.9,5.52819]
[1743383841118,5.65,1809.5,1809.4,5.52669]
[1743383841317,5.65,1809.5,1809.4,6.632049]
[1743383841755,6.443,1810.0,1809.4,7.413049]
[1743383842045,5.5252,1809.9,1809.5,5.52632]
[1743383842245,5.5252,1809.9,1809.4,6.631889]
[1743383842433,3.0,1809.8,1809.4,20.02653]
[1743383842943,3.0,1809.8,1809.4,5.52653]
[1743383843640,3.0,1809.8,1809.4,11.05296]
[1743383844135,3.0,1809.8,1809.5,5.52638]
[1743383844630,0.793,1809.7,1809.3,5.52696]
[1743383844837,6.31893,1809.7,1809.3,5.52696]
[1743383845142,0.793,1809.7,1809.4,5.52669]
[1743383845506,0.793,1809.7,1809.3,5.52684]
[1743383846356,8.52703,1809.3,1809.1,0.1]
[1743383846501,18.06667561,1809.2,1809.1,0.1]
[1743383847655,9.443,1809.2,1809.1,0.1]
[1743383848152,9.443,1809.2,1809.1,5.62761]
[1743383848930,8.65,1809.2,1809.1,0.1]
[1743383849526,8.65,1809.2,1809.1,5.62761]
[1743383849722,0.7919,1809.4,1809.3,5.52699]
[1743383849927,0.7919,1809.6,1809.3,5.52699]
[1743383850222,6.31814,1809.6,1809.2,5.5273]
[1743383850618,0.7919,1809.6,1809.3,5.52676]
[1743383851505,5.52639,1809.5,1809.1,5.62738]
[1743383851705,3.0,1809.5,1809.1,5.62738]
[1743383852130,8.52651,1809.5,1809.1,5.62738]
[1743383853336,3.0,1809.5,1809.1,11.15476]
[1743383853737,8.5264,1809.5,1809.1,5.62738]
[1743383853940,5.5267,1809.4,1809.1,0.1]
[1743383854426,6.3192,1809.2,1809.1,0.1]
[1743383854841,0.7919,1809.2,1809.1,0.1]
[1743383855022,0.7919,1809.2,1809.1,5.62761]
[1743383855344,0.7919,1809.2,1809.1,0.1]
[1743383855644,5.65,1809.3,1809.1,0.1]
[1743383855843,5.65,1809.3,1809.2,5.5273]
[1743383856007,5.65,1809.3,1809.1,5.62761]
[1743383856211,5.65,1809.3,1809.1,0.1]
[1743383856815,6.3192,1809.2,1809.1,0.1]
[1743383857015,0.7919,1809.2,1809.1,0.1]
[1743383857521,6.3192,1809.2,1809.1,0.1]
[1743383858011,11.9692,1809.2,1809.1,0.1]
[1743383858212,14.9692,1809.2,1809.1,0.1]
[1743383858440,17.130589,1809.2,1809.1,0.1]
[1743383859330,26.70459362,1809.2,1809.1,0.1]
[1743383860311,20.63459362,1809.2,1809.1,0.1]
[1743383860514,17.53821801,1809.2,1809.1,0.1]
[1743383860738,5.65,1809.2,1809.1,0.1]
[1743383861127,14.1773,1809.2,1809.1,0.1]
[1743383861423,11.1773,1809.2,1809.1,0.1]
[1743383862449,14.9753,1809.2,1809.1,0.1]
[1743383862948,9.87266549,1809.2,1809.1,0.1]
[1743383863318,17.49265804,1809.2,1809.1,0.1]
[1743383863847,26.65803365,1809.2,1809.1,0.1]
[1743383864061,11.05928,1808.5,1808.1,0.1]
[1743383864267,5.65,1808.4,1808.1,0.1]
[1743383864421,7.00106868,1808.4,1808.1,0.1]
[1743383864615,12.53081868,1808.4,1808.1,0.1]
[1743383864931,7.00106868,1808.4,1808.2,5.53034]
[1743383865131,5.65,1808.4,1808.1,0.1]
[1743383865424,3.0,1808.3,1808.1,0.1]
[1743383865615,5.65,1808.4,1808.3,5.53005]
[1743383865822,5.65,1808.4,1808.3,6.33455]
[1743383866028,5.65,1808.8,1808.7,5.52883]
[1743383866642,5.65,1808.8,1808.6,5.52903]
[1743383866956,5.65,1808.8,1808.6,5.52888]
[1743383867321,5.65,1808.8,1808.6,11.05789]
[1743383867521,5.65,1808.8,1808.6,5.52888]
[1743383868928,5.65,1808.8,1808.5,5.52944]
[1743383869129,6.09396,1808.7,1808.3,5.53005]
[1743383869352,5.65,1808.6,1808.1,0.8775]
[1743383869661,5.65,1808.6,1808.5,6.30694]
[1743383872847,5.65,1808.9,1808.7,11.05748]
[1743383873056,5.65,1809.2,1808.8,5.52852]
[1743383873226,5.65,1809.2,1809.1,5.52761]
[1743383877235,5.65,1809.2,1809.0,5.52781]
[1743383877649,5.65,1809.2,1809.1,5.52761]
[1743383879647,5.65,1809.2,1809.0,5.52778]
[1743383879848,5.65,1809.2,1809.1,5.52761]
[1743383880539,5.65,1809.2,1809.1,6.633149]
[1743383881566,5.65,1809.2,1809.1,5.52761]
[1743383882156,5.65,1809.5,1809.4,5.52669]
[1743383882661,5.65,1809.5,1809.1,5.52747]
[1743383882662,11.17651,1809.5,1809.1,5.52747]
[1743383882870,11.17651,1809.5,1808.5,5.5292]
[1743383882871,5.5273,1809.2,1808.8,5.5284]
[1743383883062,5.65,1809.1,1808.8,5.5284]
[1743383883294,5.65,1809.0,1808.8,5.5284]
[1743383883446,6.4083,1809.0,1808.7,5.52883]
[1743383883767,6.4083,1809.0,1808.8,5.52849]
[1743383884363,6.4083,1809.0,1808.8,11.05682]
[1743383884539,6.4083,1809.0,1808.8,5.52833]
[1743383885154,7.160903,1809.0,1808.8,5.52833]
[1743383885362,7.160903,1809.0,1808.7,5.52876]
[1743383885639,10.160903,1809.0,1808.9,5.52822]
[1743383885839,10.160903,1809.0,1808.8,5.52848]
[1743383886035,10.160903,1809.0,1808.7,5.52861]
[1743383886433,10.160903,1809.0,1808.8,5.52836]
[1743383886638,8.65,1809.0,1808.9,5.52822]
[1743383886864,8.65,1809.0,1808.7,5.52882]
[1743383887066,8.5287,1808.8,1808.3,5.53004]
[1743383887250,11.17897,1808.7,1808.2,5.53031]
[1743383887568,3.0,1808.4,1808.1,0.1]
[1743383887747,5.65,1808.3,1808.1,0.1]
[1743383887949,0.7583,1808.2,1808.1,0.1]
[1743383888148,0.7583,1808.2,1808.1,5.63066]
[1743383888346,5.65,1808.3,1808.1,5.63066]
[1743383888736,6.515,1808.3,1808.1,0.1]
[1743383889167,6.515,1808.3,1808.1,5.63063]
[1743383889874,6.515,1808.3,1808.1,0.1]
[1743383890082,6.515,1808.3,1808.1,5.63058]
[1743383890445,6.515,1808.3,1808.1,0.1]
[1743383890817,0.6515,1808.2,1808.1,0.1]
[1743383891194,9.3015,1808.2,1808.1,0.1]
[1743383891350,18.68653561,1808.2,1808.1,0.1]
[1743383892372,15.59016,1808.2,1808.1,0.1]
[1743383892572,10.0598,1808.2,1808.1,0.1]
[1743383892878,5.65,1808.2,1808.1,0.1]
[1743383894578,5.65,1808.2,1808.1,20.13066]
[1743383895681,5.65,1808.2,1808.1,6.39136]
[1743383895973,5.65,1808.2,1808.1,20.89136]
[1743383896173,5.65,1808.2,1808.1,24.140181]
[1743383896379,5.65,1808.2,1808.1,20.89136]
[1743383897195,5.65,1808.2,1808.1,6.39136]
[1743383898099,5.65,1808.2,1808.1,0.1]
[1743383898500,5.65,1808.2,1808.1,5.63066]
[1743383898678,5.65,1808.2,1808.1,6.39136]
[1743383898881,5.65,1808.2,1808.1,7.583581]
[1743383899077,5.65,1808.2,1808.1,5.63066]
[1743383905704,5.65,1808.2,1808.1,0.1]
[1743383905874,14.18036,1808.2,1808.1,0.1]
[1743383906078,14.97436,1808.2,1808.1,0.1]
[1743383906897,15.39290914,1808.2,1808.1,0.1]
[1743383907190,17.79484362,1808.2,1808.1,0.1]
[1743383907675,11.84593448,1808.2,1808.1,0.1]
[1743383907881,8.65,1808.2,1808.1,5.63066]
[1743383908123,8.65,1808.2,1808.1,0.1]
[1743383908352,8.65,1808.2,1808.1,5.63066]
[1743383908797,8.65,1808.2,1808.1,0.1]
[1743383909132,9.515,1808.2,1808.1,0.1]
[1743383910507,18.89613561,1808.2,1808.1,0.1]
[1743383910892,18.84843561,1808.2,1808.1,0.1]
[1743383911211,29.65645361,1808.2,1808.1,0.1]
[1743383911375,23.82042061,1808.2,1808.1,0.1]
[1743383911579,22.93663561,1808.2,1808.1,0.1]
[1743383911980,18.84843561,1808.2,1808.1,0.1]
[1743383912176,21.31853561,1808.2,1808.1,0.1]
[1743383912376,5.53162,1807.8,1807.2,0.8079]
[1743383912615,5.6023,1807.7,1807.4,5.53265]
[1743383912816,6.3567,1807.7,1807.4,5.53265]
[1743383913107,13.077482,1807.7,1807.3,5.53295]
[1743383913332,11.13449,1807.6,1807.1,5.63355]
[1743383913542,5.53252,1807.5,1807.1,5.63355]
[1743383914093,5.53252,1807.5,1807.1,11.16713]
[1743383914316,6.28736,1807.4,1807.1,0.1]
[1743383914499,5.6023,1807.3,1807.1,0.1]
[1743383914703,6.01115802,1807.3,1807.1,0.1]
[1743383915321,11.54447802,1807.3,1807.1,0.1]
[1743383915694,17.98649561,1807.2,1807.1,0.1]
[1743383916617,23.19390061,1807.2,1807.1,0.1]
[1743383916808,19.05943684,1807.2,1807.1,0.1]
[1743383916993,28.40623984,1807.2,1807.1,0.1]
[1743383917194,19.05943684,1807.2,1807.1,0.1]
[1743383917697,24.49018284,1807.2,1807.1,0.1]
[1743383918104,22.18986684,1807.2,1807.1,0.1]
[1743383918604,21.63986684,1807.2,1807.1,0.1]
[1743383918801,25.12343684,1807.2,1807.1,0.1]
[1743383919612,5.53515,1806.7,1806.2,5.53632]
[1743383919908,6.28997,1806.5,1806.1,5.63678]
[1743383920120,3.0,1806.4,1806.1,5.63673]
[1743383920449,3.0,1806.5,1806.3,5.53599]
[1743383920799,3.0,1806.5,1806.3,11.07202]
[1743383920995,3.0,1806.5,1806.3,5.53599]
[1743383921200,1.25906074,1806.5,1806.2,5.53631]
[1743383921401,0.40883074,1806.5,1806.3,5.53605]
[1743383921615,5.5023,1806.6,1806.3,5.53605]
[1743383921813,5.5023,1806.6,1806.2,5.53631]
[1743383922013,11.03762,1806.6,1806.2,11.07266]
[1743383922220,1.103762,1806.5,1806.2,5.53631]
[1743383923016,1.103762,1806.5,1806.1,5.63672]
[1743383923212,0.8133,1806.4,1806.1,0.1]
[1743383923417,8.59867561,1806.3,1806.1,0.1]
[1743383923745,14.85208,1806.2,1806.1,0.1]
[1743383924051,16.119138,1806.2,1806.1,0.1]
[1743383925540,22.184138,1806.2,1806.1,0.1]
[1743383925753,9.3156,1806.2,1806.1,0.1]
[1743383926113,17.94845561,1806.2,1806.1,0.1]
[1743383927112,5.53772,1805.8,1805.4,5.53875]
[1743383927312,8.4023,1805.7,1805.4,5.53878]
[1743383927938,8.4023,1805.7,1805.3,6.31332]
[1743383928136,21.507945,1805.7,1805.2,5.53954]
[1743383928342,21.507945,1805.7,1805.3,5.53921]
[1743383928544,21.507955,1805.7,1805.2,5.5393]
[1743383928745,21.507965,1805.7,1805.2,11.07872]
[1743383929040,10.431425,1805.7,1805.4,5.53886]
[1743383929246,8.4023,1805.7,1805.4,5.53886]
[1743383929450,8.4023,1805.7,1805.3,5.53918]
[1743383929816,8.4023,1805.7,1805.4,5.53876]
[1743383930550,8.4023,1805.7,1805.4,5.5388]
[1743383931220,13.94034,1805.7,1805.3,5.5392]
[1743383931548,5.4023,1805.6,1805.3,5.53903]
[1743383932046,10.94073,1805.6,1805.2,5.53951]
[1743383932227,16.47933,1805.6,1805.1,11.93944]
[1743383932412,10.94073,1805.6,1805.1,6.39979]
[1743383932611,5.4023,1805.6,1805.3,5.53906]
[1743383932817,5.4023,1805.6,1805.4,5.53863]
[1743383933241,5.4023,1805.6,1805.5,5.53863]
[1743383934318,5.4023,1805.6,1805.3,5.53904]
[1743383934520,5.4023,1805.6,1805.4,5.53888]
[1743383934728,5.4023,1805.6,1805.3,5.53902]
[1743383935253,5.94253,1805.6,1805.3,5.53903]
[1743383936250,5.94253,1805.6,1805.3,11.07808]
[1743383936439,5.94253,1805.6,1805.3,5.53903]
[1743383936750,5.94253,1805.6,1805.0,5.53988]
[1743383936751,8.49867561,1805.5,1805.0,5.53988]
[1743383936920,5.53969,1805.2,1804.6,1.1001982]
[1743383937121,5.53969,1805.2,1804.4,20.566]
[1743383937122,5.4023,1805.1,1804.8,11.08116]
[1743383937416,5.4023,1805.1,1804.1,0.1]
[1743383937417,3.0,1804.6,1804.1,0.1]
[1743383937727,5.4023,1804.5,1804.4,5.542]
[1743383939622,5.4023,1804.7,1804.5,5.54146]
[1743383941246,10.94352,1804.7,1804.3,0.7629]
[1743383941552,5.4023,1804.7,1804.3,5.54217]
[1743383941854,10.94355,1804.7,1804.2,5.54236]
[1743383942022,5.4023,1804.7,1804.3,5.54217]
[1743383942219,12.75989352,1804.7,1804.3,5.54217]
[1743383942717,7.64096742,1804.7,1804.1,0.8629]
[1743383942961,5.4023,1804.6,1804.4,5.5419]
[1743383943443,5.4023,1804.6,1804.4,11.08378]
[1743383943755,5.4023,1804.6,1804.4,5.54188]
[1743383944128,5.4023,1804.6,1804.4,5.54199]
[1743383944462,5.4023,1804.6,1804.1,0.8629]
[1743383944643,5.4023,1804.6,1804.4,5.54195]
[1743383944844,5.4023,1804.6,1804.3,5.5423]
[1743383945555,5.4023,1804.6,1804.4,5.54186]
[1743383945753,5.4023,1804.6,1804.4,11.08364]
[1743383946052,5.4023,1804.6,1804.5,5.5417]
[1743383946551,5.4023,1804.6,1804.5,6.3046]
[1743383946719,5.4023,1804.6,1804.5,7.489238]
[1743383947126,5.4023,1804.9,1804.8,5.54078]
[1743383947328,5.4023,1804.9,1804.7,5.54098]
[1743383947829,5.4023,1804.9,1804.7,11.08187]
[1743383948065,5.4023,1804.9,1804.8,5.54078]
[1743383948966,5.4023,1805.1,1805.0,5.54016]
[1743383949262,5.4023,1805.3,1804.9,5.54044]
[1743383949572,5.4023,1805.3,1805.1,5.53971]
[1743383949735,5.4023,1805.3,1805.0,5.53986]
[1743383950078,6.52507128,1805.3,1804.9,5.54034]
[1743383950426,15.16083689,1805.3,1804.8,5.54076]
[1743383950626,15.16083689,1805.3,1804.8,11.08129]
[1743383950855,15.16083689,1805.3,1804.9,5.54042]
[1743383951057,15.16094689,1805.3,1804.8,5.54063]
[1743383951264,1.51609469,1805.2,1804.8,5.54063]
[1743383951443,1.51609469,1805.2,1804.6,6.30421]
[1743383951646,5.4023,1805.2,1805.0,11.07988]
[1743383951851,5.4023,1805.2,1805.0,5.53988]
[1743383952271,5.4023,1805.2,1805.1,5.53985]
[1743383952437,5.4023,1805.2,1805.0,5.53988]
[1743383952644,5.4023,1805.2,1805.1,5.53985]
[1743383953557,9.43930561,1805.6,1805.3,5.53924]
[1743383953558,5.4023,1805.4,1805.3,5.53924]
[1743383953740,5.4023,1805.4,1805.2,5.53955]
[1743383953741,5.4023,1805.4,1805.2,11.0791]
[1743383954339,5.4023,1805.4,1804.4,8.54177]
[1743383954340,5.54013,1805.1,1804.6,5.54126]
[1743383954544,5.54047,1804.9,1804.5,11.91395]
[1743383954791,5.54047,1804.9,1804.5,6.37238]
[1743383954941,5.54047,1804.9,1804.4,6.37286]
[1743383955342,12.05268861,1805.0,1804.7,5.54108]
[1743383955559,8.956313,1805.0,1804.7,5.54108]
[1743383955757,8.956313,1805.0,1804.8,5.54063]
[1743383955939,8.956313,1805.0,1804.7,5.54108]
[1743383956165,14.496473,1805.0,1804.6,5.54138]
[1743383956352,20.036893,1805.0,1804.6,5.54138]
[1743383956551,1.4496473,1804.9,1804.6,5.54138]
[1743383957251,5.4023,1805.0,1804.5,0.55]
[1743383957466,1.23873996,1805.8,1804.5,0.55]
[1743383957467,5.4023,1805.3,1805.1,5.53979]
[1743383958375,5.4023,1805.3,1805.0,5.54012]
[1743383958577,5.4023,1805.3,1805.1,5.53985]
[1743383958774,5.4023,1805.3,1805.2,5.53955]
[1743383959393,5.4023,1805.3,1805.1,5.53975]
[1743383960148,5.4023,1805.3,1805.2,5.53955]
[1743383960879,5.4023,1805.7,1805.5,5.53839]
[1743383961176,5.4023,1805.7,1805.5,11.0768]
[1743383961389,5.4023,1805.7,1805.3,5.53917]
[1743383961683,0.8044,1805.6,1805.2,11.90964]
[1743383961983,0.8044,1805.6,1805.4,5.53888]
[1743383962190,0.8044,1805.6,1805.3,5.53923]
[1743383962484,1.42507,1805.6,1805.3,5.53923]
[1743383963943,1.42507,1805.6,1805.2,5.53948]
[1743383964151,6.96364,1805.6,1805.2,5.53948]
[1743383964461,5.5391,1805.4,1804.9,5.54023]
[1743383964648,5.4023,1805.3,1805.0,5.54015]
[1743383964848,0.8044,1805.2,1804.9,5.54023]
[1743383965252,6.34409,1805.2,1804.7,5.54094]
[1743383965757,11.88393,1805.2,1804.7,11.08181]
[1743383965988,6.75892442,1805.2,1804.8,5.5405]
[1743383966191,12.29874442,1805.2,1804.8,5.5405]
[1743383966391,9.63217444,1805.1,1804.6,5.54139]
[1743383966570,9.63217444,1805.1,1804.8,5.54056]
[1743383966773,8.4023,1805.1,1804.9,5.54023]
[1743383966984,5.4023,1805.1,1805.0,5.54016]
[1743383968206,5.4023,1805.1,1804.9,6.30963]
[1743383968412,5.4023,1805.1,1805.0,5.54016]
[1743383968907,5.4023,1805.1,1804.9,5.54023]
[1743383969087,5.4023,1805.1,1804.9,11.08048]
[1743383969288,5.4023,1805.1,1804.9,5.54023]
[1743383970585,5.4023,1805.1,1805.0,5.54016]
[1743383971023,5.4023,1805.5,1805.4,5.53893]
[1743383971312,5.4023,1805.8,1805.5,5.53847]
[1743383971711,5.4023,1805.8,1805.6,5.53824]
[1743383972230,5.4023,1805.8,1805.5,11.07694]
[1743383972513,5.4023,1805.8,1805.6,5.53826]
[1743383973210,5.4023,1805.8,1805.7,5.53801]
[1743383973388,5.4023,1805.8,1805.6,5.53826]
[1743383973595,5.4023,1805.8,1805.6,11.07644]
[1743383973808,5.4023,1805.8,1805.7,5.53801]
[1743383974184,3.0,1806.0,1805.8,5.53764]
[1743383974486,5.4023,1806.0,1805.8,5.53764]
[1743383976221,5.53761,1805.9,1805.4,6.3083]
[1743383976423,0.7526,1805.8,1805.4,5.5389]
[1743383976612,1.306361,1805.8,1805.4,5.5389]
[1743383977130,1.306361,1805.8,1805.4,5.5387]
[1743383977496,1.306361,1805.8,1805.5,5.53843]
[1743383977497,0.7526,1805.8,1805.5,5.53843]
[1743383978394,5.4023,1805.9,1805.5,0.7694]
[1743383978719,5.4023,1805.9,1805.8,6.30711]
[1743383978937,5.4023,1805.9,1805.7,5.53791]
[1743383978938,10.93895,1806.2,1805.7,5.53791]
[1743383979109,12.638945,1806.2,1805.7,5.53791]
[1743383979296,18.175605,1806.2,1805.7,5.53791]
[1743383979496,12.638945,1806.2,1805.7,11.07573]
[1743383979696,12.638945,1806.2,1805.7,5.53782]
[1743383980099,3.0,1806.1,1805.7,5.53782]
[1743383980496,5.4023,1806.2,1805.8,0.553782]
[1743383980836,5.4023,1806.2,1805.9,5.5372]
[1743383981488,5.4023,1806.2,1806.0,5.53707]
[1743383981893,5.4023,1806.2,1805.9,11.07442]
[1743383982105,5.4023,1806.2,1805.8,12.398282]
[1743383982327,5.4023,1806.2,1805.9,5.5371]
[1743383982505,5.4023,1806.2,1806.0,5.53697]
[1743383982707,5.4023,1806.2,1805.9,6.2231282]
[1743383983026,5.4023,1806.2,1805.9,11.7603882]
[1743383983531,5.4023,1806.2,1806.0,5.5369]
[1743383984123,5.4023,1806.2,1806.1,5.53679]
[1743383984303,5.4023,1806.2,1806.1,6.644159]
[1743383984632,8.53527,1806.6,1806.1,12.180729]
[1743383984633,5.4023,1806.3,1806.1,12.180729]
[1743383984922,5.4023,1806.3,1806.2,5.53648]
[1743383985106,5.4023,1806.3,1806.1,6.643939]
[1743383985714,5.4023,1806.3,1806.1,12.180509]
[1743383986201,5.4023,1806.3,1806.2,5.53648]
[1743383986697,5.4023,1806.3,1806.1,6.643939]
[1743383988396,5.4023,1806.3,1806.1,11.07316]
[1743383988602,5.4023,1806.3,1806.2,5.53648]
[1743383989119,5.4023,1806.3,1806.1,5.53657]
[1743383989499,5.4023,1806.3,1806.1,11.07318]
[1743383989733,5.4023,1806.3,1806.2,5.53648]
[1743383990832,5.4023,1806.3,1806.2,7.452885]
[1743383991942,5.4023,1806.3,1806.1,5.53657]
[1743383992130,5.4023,1806.3,1806.1,11.07314]
[1743383992637,5.4023,1806.5,1806.4,5.53587]
[1743383994641,5.4023,1806.5,1806.3,11.88107]
[1743383995012,5.4023,1806.5,1806.4,5.53587]
[1743383995242,0.7691,1806.4,1806.0,5.5369]
[1743383995741,0.7691,1806.4,1806.1,5.53675]
[1743383995943,6.1714,1806.4,1806.1,5.53675]
[1743383997049,6.1714,1806.4,1806.0,5.5369]
[1743383997345,6.1714,1806.4,1806.0,11.07377]
[1743383997516,6.1714,1806.4,1806.1,5.53677]
[1743383997711,5.4023,1806.4,1806.2,5.53648]
[1743383999641,5.4023,1806.4,1806.2,5.53629]
[1743383999849,5.4023,1806.4,1806.3,5.53617]
[1743384000049,5.4023,1806.4,1806.2,5.53626]
[1743384000417,5.4023,1806.4,1806.3,5.53617]
[1743384001045,5.4023,1806.4,1806.1,6.644154]
[1743384001268,5.4023,1806.4,1805.9,6.34631]
[1743384001423,5.4023,1806.4,1805.7,1.09689984]
[1743384001424,6.33518,1806.2,1805.7,6.28792]
[1743384001613,5.4023,1806.1,1805.9,5.5372]
[1743384002318,5.4023,1806.1,1805.9,5.53736]
[1743384002722,5.4023,1806.1,1805.8,5.53764]
[1743384002919,5.4023,1806.1,1805.9,5.53732]
[1743384003125,5.4023,1806.1,1806.0,5.53709]
[1743384003926,5.4023,1806.1,1805.9,5.53732]
[1743384004334,5.4023,1806.1,1805.9,11.07459]
[1743384004658,5.4023,1806.1,1806.0,5.53709]
[1743384005064,5.4023,1806.1,1806.0,6.644526]
[1743384008688,5.4023,1806.1,1805.9,5.53727]
[1743384009089,5.4023,1806.1,1805.8,5.53765]
[1743384009385,0.8145,1806.0,1805.7,5.53779]
[1743384009667,5.4023,1806.1,1805.2,5.53954]
[1743384009668,6.35254,1805.7,1805.2,5.53954]
[1743384009967,3.0,1805.5,1805.0,0.7967]
[1743384010156,0.8145,1805.4,1805.1,5.53969]
[1743384010354,0.8145,1805.4,1805.0,5.53999]
[1743384010652,0.8145,1805.4,1805.0,11.08002]
[1743384010962,0.8145,1805.4,1805.1,5.53968]
[1743384011161,6.2168,1805.6,1805.4,5.53893]
[1743384011358,6.2168,1805.6,1805.4,5.53881]
[1743384011560,5.4023,1805.6,1805.4,5.53881]
[1743384011765,5.4023,1805.6,1805.5,5.53863]
[1743384011953,5.4023,1805.6,1805.4,5.53881]
[1743384012865,5.4023,1805.6,1805.5,5.53863]
[1743384013622,5.4023,1805.9,1805.7,5.53789]
[1743384013809,5.4023,1805.9,1805.8,5.53771]
[1743384016227,5.4023,1805.9,1805.6,20.03831]
[1743384016507,6.215,1805.9,1805.5,5.53847]
[1743384016698,6.215,1805.9,1805.4,5.53893]
[1743384016699,11.75253,1805.9,1805.4,5.53893]
[1743384016905,1.175253,1805.8,1805.4,5.53893]
[1743384017109,1.175253,1805.8,1805.1,20.551]
[1743384017110,5.4023,1805.7,1805.2,5.53932]
[1743384017406,5.4023,1805.7,1805.5,5.5384]
[1743384017714,5.4023,1805.7,1805.6,5.53832]